Cogmind - Beta 11.1 @@@ ROGUE MODE // 2022.05.30 @ 19:35:32 Player: Decinym Result: Destroyed by 8R-AWN with 8R-AWN's Boregun Performance ------------- Evolutions (1) 500 Regions Visited (5) 1000 Robots Destroyed (37) 185 Value Destroyed (841) 841 Prototype IDs (39) 780 Alien Tech Used (0) 0 Bonus (419) 419 TOTAL SCORE: 3725 Bonus ------- High Alert Combat Kills 31 Follower Combat Kills 100 Aligned with FarCom 300 Friendly Fire -12 Cogmind --------- Core Integrity 0/400 Matter 285/400 Energy 100/100 System Corruption 0% Temperature Cool (0) Movement Walking (90) Location -9/Exiles Parts ------- > --- POWER (1) -------- (None) > --- PROPULSION (3) --- Light Treads Potential Leg Potential Leg > --- UTILITY (3) ------ Large Storage Unit Medium Matter Pod > --- WEAPON (2) ------- Heavy Assault Rifle Heavy Assault Rifle > --- INVENTORY (15) --- High-capacity Battery (250) Shield Generator Splice Drone Bay (6/6) Assault Rifle Grenade Launcher Peak State ------------ > --- POWER ------------ (None) > --- PROPULSION ------- Light Treads Potential Leg Potential Leg > --- UTILITY ---------- Large Storage Unit Medium Matter Pod > --- WEAPON ----------- Heavy Assault Rifle Heavy Assault Rifle > --- INVENTORY -------- High-capacity Battery Shield Generator Splice Drone Bay Assault Rifle Grenade Launcher [Rating: 28] Favorites ----------- Power Heavy Ion Engine Engine Heavy Ion Engine Power Core Light Nuclear Core Propulsion Light Treads Treads Light Treads Leg Aluminum Leg Utility Medium Storage Unit Device Shield Generator Storage Medium Storage Unit Protection Medium Armor Plating Weapon Heavy Assault Rifle Energy Gun EM Pulse Gun Ballistic Gun Heavy Assault Rifle Launcher Grenade Launcher Special Weapon Mining Laser Special Melee Weapon Datajack Build | -11 -10 -10 -9 -9 -9 ------- Run | Scr Mat Min Mat Min Exi Slots Evolved 2 | . . . 2 . . Power . | . . . . . . Propulsion 1 | . . . 1 . . Utility 1 | . . . 1 . . Weapon . | . . . . . . Parts Attached 51 | . . 12 18 10 11 Power 2 | . . 1 1 . . Engine 1 | . . . 1 . . Core 1 | . . 1 . . . Reactor . | . . . . . . Propulsion 15 | . . 3 6 3 3 Treads 9 | . . . 5 3 1 Leg 6 | . . 3 1 . 2 Wheel . | . . . . . . Hover . | . . . . . . Flight . | . . . . . . Utility 17 | . . 4 4 5 4 Device 6 | . . 4 . 2 . Storage 3 | . . . 1 . 2 Processor . | . . . . . . Hackware . | . . . . . . Protection 8 | . . . 3 3 2 Artifact . | . . . . . . Weapon 17 | . . 4 7 2 4 Energy Gun 5 | . . 2 3 . . Energy Cannon . | . . . . . . Ballistic Gun 9 | . . 1 3 2 3 Ballistic Cannon . | . . . . . . Launcher 1 | . . . 1 . . Special Weapon 1 | . . 1 . . . Impact Weapon . | . . . . . . Slashing Weapon . | . . . . . . Piercing Weapon . | . . . . . . Special Melee Weapon 1 | . . . . . 1 Unidentified Prototypes 4 | . . 1 2 1 . Parts Lost 17 | . . 2 5 1 9 Power 1 | . . . . . 1 Propulsion 4 | . . . 1 . 3 Utility 6 | . . . 2 1 3 Weapon 6 | . . 2 2 . 2 Highest Loss Streak 9 | . . 1 2 1 9 To Critical Strikes 6 | . . . . . 6 Average Slot Usage (%) 94 | . 85 88 87 99 97 Engine 9 | . 14 9 7 11 9 Core 1 | . . 4 3 . . Treads 22 | . . . 19 33 31 Leg 8 | . 28 28 10 . . Device 6 | . . 6 8 3 10 Storage 11 | . 14 14 11 11 11 Protection 9 | . . . 5 18 10 Energy Gun 5 | . 14 14 12 . . Ballistic Gun 16 | . 14 9 7 22 20 Naked Turns . | . . . . . . Heaviest Build 43 | 11 11 15 30 34 43 Greatest Support 60 | 20 20 20 60 60 60 Greatest Overweight (x) 1 | . . . 1 . . Average Overweight (x) . | . . . . . . Largest Inventory Capacity 15 | . 8 8 10 10 15 Average Capacity 10 | . 8 8 9 10 14 Most Carried 15 | . 6 8 10 10 15 Average Carried 9 | . 6 6 7 9 11 Final Capacity 15 | 8 8 8 10 10 15 Final Carried 10 | 6 6 8 10 10 5 Class Distribution -------------------- 68% | Mutant 31% | Scavenger-Mutant Dominant Class ---------------- Mutant | -10/Materials Mutant | -10/Mines Mutant | -9/Materials Mutant | -9/Mines Scavenger-Mutant | -9/Exiles Resources | -11 -10 -10 -9 -9 -9 ----------- Run | Scr Mat Min Mat Min Exi Matter Collected 1348 | 200 . 183 274 313 378 Remotely . | . . . . . . Salvage Created 1146 | . . 195 613 328 10 Parts 78 | . . 12 50 16 . Haulers Intercepted 2 | . . . 2 . . Recyclers Shooed 2 | . . . . 2 . Parts Field Recycled . | . . . . . . Retrieved Matter . | . . . . . . Parts Self-Destructed . | . . . . . . Prevented . | . . . . . . Kills | -11 -10 -10 -9 -9 -9 ------- Run | Scr Mat Min Mat Min Exi Combat Hostiles Destroyed 34 | . . 5 21 6 2 Guns 30 | . . 5 17 6 2 AOE 4 | . . . 4 . . Classes Destroyed 9 | . . 2 4 3 . Worker 1 | . . . . 1 . Tunneler 1 | . . . . 1 . Hauler 2 | . . . 2 . . Recycler 2 | . . . 1 1 . Swarmer 14 | . . . 13 1 . Grunt 12 | . . 4 5 3 . Sentry 4 | . . . 3 1 . Demolisher 1 | . . 1 . . . Assembled 3 | . . . . 1 2 Best Kill Streak 5 | . . 2 5 2 1 Combat Bots Only 4 | . . 2 4 1 1 Max Kills in Single Turn 2 | . . 1 2 1 1 Gunslinging 1 | . . . 1 . . Exploded 1 | . . . 1 . . Melee . | . . . . . . Uniques/NPCs Destroyed . | . . . . . . Combat | -11 -10 -10 -9 -9 -9 -------- Run | Scr Mat Min Mat Min Exi Damage Taken 2866 | . . 469 735 254 1408 Core 493 | . . 71 124 8 290 Absorbed by Shields 205 | . . . . 23 182 Redirected to Shielding 18 | . . . . . 18 Core Remaining (%) 85 | 100 . 71 . . . Volleys Fired 168 | . . 27 46 27 68 Largest 2 | . . 2 2 2 2 Hottest 165 | . . 105 165 46 46 Shots Fired 286 | . . 30 82 54 120 Gun 276 | . . 29 73 54 120 Cannon . | . . . . . . Launcher 8 | . . . 8 . . Special 2 | . . 1 1 . . Kinetic 216 | . . 24 18 54 120 Thermal 61 | . . 5 56 . . Explosive 8 | . . . 8 . . Electromagnetic 1 | . . 1 . . . Robot Hit Streak 18 | . . 7 18 13 10 Robot Miss Streak 5 | . . 3 2 5 3 Penetration Max . | . . . . . . Secondary Targets 4 | . . . 4 . . Max Gunslinging Chain 1 | . . . 1 . . Shots Hit Robots 212 | . . 18 63 38 93 Core Hits 74 | . . 11 33 19 11 Critical Kills . | . . . . . . Critical Parts Destroyed 1 | . . . . 1 . Critical Strikes 7 | . . . 6 1 . Burn 6 | . . . 6 . . Destroy 1 | . . . . 1 . Melee Attacks 5 | . . . . . 5 Impact . | . . . . . . Slashing . | . . . . . . Piercing . | . . . . . . Sneak Attacks 5 | . . . . . 5 Combat Hostiles . | . . . . . . Follow-up Attacks . | . . . . . . Damage Inflicted 3420 | . . 223 1311 535 1351 Guns 2963 | . . 223 862 527 1351 Cannons . | . . . . . . Explosions 449 | . . . 449 . . Melee . | . . . . . . Ramming 8 | . . . . 8 . Kinetic 2266 | . . 189 199 527 1351 Thermal 687 | . . 24 663 . . Explosive 449 | . . . 449 . . Electromagnetic 10 | . . 10 . . . Impact . | . . . . . . Slashing . | . . . . . . Piercing . | . . . . . . Highest Corruption . | . . . . . . Average Corruption . | . . . . . . Corruption Purged . | . . . . . . Corruption Blocked . | . . . . . . Overload Shots . | . . . . . . Overflow Damage . | . . . . . . Projectiles . | . . . . . . Explosions . | . . . . . . Melee . | . . . . . . Knockbacks . | . . . . . . Impact . | . . . . . . Kinetic . | . . . . . . Secondary . | . . . . . . Self-Inflicted Damage 41 | . . . 41 . . Shots 4 | . . . 4 . . Rammed 3 | . . . . 3 . Targets Rammed 3 | . . . . 3 . Kicked . | . . . . . . Crushed . | . . . . . . Highest Temperature 87 | . . 20 87 10 . Average Temperature 27 | . . 8 36 4 . Received Heat Transfer 415 | . . 150 177 88 . Siege Activations . | . . . . . . Robots Corrupted . | . . . . . . Combat Hostiles . | . . . . . . Parts Fried . | . . . . . . Impact Corruptions . | . . . . . . Robots Melted . | . . . . . . Combat Hostiles . | . . . . . . Parts Melted 8 | . . . 6 2 . Heat Transferred 1989 | . . 62 1927 . . Parts Sabotaged . | . . . . . . Parts Stolen . | . . . . . . Parts Stripped . | . . . . . . Power Chain Reactions . | . . . . . . Missiles Intercepted . | . . . . . . Alert | -11 -10 -10 -9 -9 -9 ------- Run | Scr Mat Min Mat Min Exi Peak Influence 473 | . 15 60 473 280 . Initial 184 | . . 5 . 184 . Average 95 | . 2 18 268 96 . Maximum Alert Level 2 | . . . 2 1 . Low Security (%) 82 | . 100 100 40 84 . Level 1 12 | . . . 30 15 . Level 2 4 | . . . 29 . . Level 3 . | . . . . . . Level 4 . | . . . . . . Level 5 . | . . . . . . High Security . | . . . . . . Max Security . | . . . . . . Squads Dispatched 2 | . . . 2 . . Investigation . | . . . . . . Extermination . | . . . . . . Reinforcement 2 | . . . 2 . . Assault . | . . . . . . Garrison . | . . . . . . Intercept . | . . . . . . Searches Triggered . | . . . . . . Construction Impeded . | . . . . . . Haulers Reinforced . | . . . . . . Active Scanning Responses . | . . . . . . Cargo Convoy Interrupts . | . . . . . . Stealth | -11 -10 -10 -9 -9 -9 --------- Run | Scr Mat Min Mat Min Exi Distress Signals 5 | . . . 3 2 . Communications Jammed . | . . . . . . Distress Signals . | . . . . . . Times Spotted 51 | . 1 6 28 12 4 Peak Tracking Total 9 | . 1 2 6 3 9 Tactical Retreats 1 | . . . . 1 . Traps | -11 -10 -10 -9 -9 -9 ------- Run | Scr Mat Min Mat Min Exi Traps Triggered . | . . . . . . Indirectly . | . . . . . . Trap Hack Attempts . | . . . . . . Triggered . | . . . . . . Disarmed . | . . . . . . Reprogrammed . | . . . . . . Reused . | . . . . . . Traps Extracted . | . . . . . . Installed . | . . . . . . Triggered . | . . . . . . Exploded 3 | . . . . . 3 Machines | -11 -10 -10 -9 -9 -9 ---------- Run | Scr Mat Min Mat Min Exi Machines Disabled 3 | . . . 1 . 2 Max in Single Turn 1 | . . . 1 . 1 Machines Sabotaged . | . . . . . . Garrisons Compromised . | . . . . . . Overloaded Fab Kills . | . . . . . . Hacking | -11 -10 -10 -9 -9 -9 --------- Run | Scr Mat Min Mat Min Exi Machines Accessed 4 | . . . 2 . 2 Terminals 2 | . . . 2 . . Fabricators . | . . . . . . Repair Stations . | . . . . . . Recycling Units . | . . . . . . Scanalyzers . | . . . . . . Garrison Access . | . . . . . . Total Hacks 9 | . . . 7 . 2 Successful 6 | . . . 4 . 2 Failed 3 | . . . 3 . . Catastrophic . | . . . . . . Database Lockouts . | . . . . . . Manual 7 | . . . 6 . 1 Terminals 7 | . . . 7 . . Fabricators . | . . . . . . Repair Stations . | . . . . . . Recycling Units . | . . . . . . Scanalyzers . | . . . . . . Garrison Access . | . . . . . . Terminal Hacks 5 | . . . 3 . 2 Record 1 | . . . . . 1 Branch Access Points 1 | . . . 1 . . Terminal Index 1 | . . . 1 . . Zone Layout 1 | . . . 1 . . EX-Prototype ID Bank 1 | . . . . . 1 Fabricator Hacks . | . . . . . . Repair Station Hacks . | . . . . . . Recycling Unit Hacks . | . . . . . . Scanalyzer . | . . . . . . Garrison Access Hacks . | . . . . . . Unauthorized Hacks 1 | . . . 1 . . Terminals 1 | . . . 1 . . Botnet 1 | . . . 1 . . Fabricators . | . . . . . . Repair Stations . | . . . . . . Recycling Units . | . . . . . . Scanalyzers . | . . . . . . Garrison Access . | . . . . . . Data Cores Recovered . | . . . . . . Used . | . . . . . . Hacking Detections 1 | . . . 1 . . Full Trace Events . | . . . . . . Feedback Events . | . . . . . . Feedback Blocked . | . . . . . . Robot Schematics Acquired . | . . . . . . Robots Built . | . . . . . . Authchips . | . . . . . . Time . | . . . . . . Total Robot Build Rating . | . . . . . . Part Schematics Acquired . | . . . . . . Parts Built . | . . . . . . Authchips . | . . . . . . Time . | . . . . . . Total Part Build Rating . | . . . . . . Parts Repaired . | . . . . . . Time . | . . . . . . Parts Recycled . | . . . . . . Recycled Matter . | . . . . . . Retrieved Matter . | . . . . . . Retrieved Components . | . . . . . . Parts Scanalyzed . | . . . . . . Part Schematics Acquired . | . . . . . . Parts Damaged . | . . . . . . Bothacking | -11 -10 -10 -9 -9 -9 ------------ Run | Scr Mat Min Mat Min Exi Used RIF Installer . | . . . . . . Robots Hacked 4 | . . . . . 4 Non-combat 2 | . . . . . 2 Combat 2 | . . . . . 2 Robot Hacks Applied 4 | . . . . . 4 parse_system 4 | . . . . . 4 Relay Couplers Released . | . . . . . . Fabnet Peak Effective % . | . . . . . . Robots Rewired . | . . . . . . Allies Hacked . | . . . . . . Hacks Repelled . | . . . . . . Allies | -11 -10 -10 -9 -9 -9 -------- Run | Scr Mat Min Mat Min Exi Total Allies 5 | . . . . 5 . Largest Group 3 | . . . . 3 1 Highest-Rated Group 47 | . . . . 47 12 Highest-Rated Ally 31 | . . . . 31 12 Total Orders . | . . . . . . Ally Attacks 25 | . . . . 25 . Total Damage 348 | . . . . 348 . Kills 8 | . . . . 8 . Allies Corrupted . | . . . . . . Allies Melted . | . . . . . . Intel | -11 -10 -10 -9 -9 -9 ------- Run | Scr Mat Min Mat Min Exi Robot Analysis Total . | . . . . . . Derelict Logs Recovered 3 | . . 1 . 2 . Drone Launches . | . . . . . . Drone Recoveries . | . . . . . . Exploration | -11 -10 -10 -9 -9 -9 ------------- Run | Scr Mat Min Mat Min Exi Turns Passed 5264 | . 41 1323 590 1609 1701 Spaces Moved 2626 | 1 35 675 259 735 921 Core . | . . . . . . Treads 1791 | . . . 153 735 903 Legs 835 | 1 35 675 106 . 18 Wheels . | . . . . . . Hover . | . . . . . . Flight . | . . . . . . Fastest Speed 45 | 120 120 120 120 160 45 Average Speed 148 | 120 120 120 160 160 157 Slowest Speed 190 | 120 120 120 190 160 160 Overloaded Moves 18 | . . . . . 18 Propulsion Burnouts . | . . . . . . Robots Hopped . | . . . . . . Cave-ins Triggered . | . . . . . . Exploration Rate (%) 50 | 2 11 100 35 87 68 Regions Visited 5 Branch Regions 3 Pre-discovered Areas 3 | . . . . 2 1 Known Exits Taken 2 | . . . 1 1 . Unknown Exits Taken 3 | 1 1 1 . . . Scrap Searched 4 | . . 1 . 3 . Spaces Dug 1 | . . 1 . . . Terrain Destroyed 33 | . . 1 32 . . Melee . | . . . . . . Projectile 2 | . . 1 1 . . AOE 31 | . . . 31 . . Terrain Rammed . | . . . . . . Walls Destroyed . | . . . . . . Machines Disabled . | . . . . . . Actions | -11 -10 -10 -9 -9 -9 --------- Run | Scr Mat Min Mat Min Exi Total 3704 | . 34 1156 347 1114 1053 Wait 788 | . . 431 6 326 25 Move 2621 | . 34 674 258 734 921 Hop . | . . . . . . Pick Up 27 | . . 3 9 3 12 Fast Attach 22 | . . 6 9 7 . Attach 15 | . . 1 5 1 8 Detach 1 | . . 1 . . . Swap 14 | . . 5 4 2 3 Drop 40 | . . 8 10 11 11 Fire 168 | . . 27 46 27 68 Melee 5 | . . . . . 5 Ram . | . . . . . . Kick . | . . . . . . Crush 3 | . . . . 3 . Escape Stasis . | . . . . . . Rewire . | . . . . . . Trap . | . . . . . . Miscellaneous . | . . . . . . Route ------- -11/Scrapyard -10/Materials -10/Mines (discovered 2 exits: *Mat x2) -9/Materials (discovered 4 exits: Mat / *Min x2 / Sto) -9/Mines (discovered 2 exits: *Mat / *Exi) -9/Exiles (discovered 1 exit: [*Min]) History --------- Turn | Location | Event 1 | -11/Scrapyard | Discovered new exit (range 0) 1 | -11/Scrapyard | Entered Materials 24 | -10/Materials | Discovered new exit (range 16) 42 | -10/Materials | Entered Mines 48 | -10/Mines | Assembled infested the area 305 | -10/Mines | Build established: Mutant 709 | -10/Mines | Learned 2 Materials zone layouts 714 | -10/Mines | Discovered new exit (range 7) 869 | -10/Mines | Discovered new exit (range 10) 1256 | -10/Mines | Build established: Scavenger-Mutant 1281 | -10/Mines | Found Prototype Device 1281 | -10/Mines | Identified Splice Drone Bay 1365 | -10/Mines | Entered Materials 1365 | -9/Materials | Evolved 2 slots: Propulsion x1, Utility x1 1366 | -9/Materials | Identified exit to Materials 1377 | -9/Materials | Identified exit to Mines 1377 | -9/Materials | Identified exit to Storage 1955 | -9/Materials | Entered Mines 1997 | -9/Mines | Assisted by bots powering up and referring to "LRC-V3" 2039 | -9/Mines | Found a damaged Exp. Sensor Array with a note attached 2042 | -9/Mines | Found Prototype Device 2042 | -9/Mines | Identified Exp. Sensor Array 2092 | -9/Mines | Build established: Mutant 2092 | -9/Mines | Discovered exit to Materials (range 16) 2263 | -9/Mines | Learned location of Storage (-9) 2513 | -9/Mines | Excavation squad dispatched 2513 | -9/Mines | A large section of the Mines collapsed 2763 | -9/Mines | Excavation squad dispatched 3473 | -9/Mines | Identified exit to Exiles 3555 | -9/Mines | Deemed a non-threat by the Exiles lab entrance 3564 | -9/Mines | Entered Exiles 3564 | -9/Exiles | Accompanied by 1 ally 3585 | -9/Exiles | Discovered new exit (range 15) 3608 | -9/Exiles | Met 8R-AWN 3630 | -9/Exiles | Met EX-HEX 3673 | -9/Exiles | Met EX-BIN 3699 | -9/Exiles | Aligned with FarCom system 3700 | -9/Exiles | Given EX-Vault access code 3747 | -9/Exiles | Opened EX-Vault 3784 | -9/Exiles | Warned to stay clear of 0b10 Research branches 4088 | -9/Exiles | Met EX-DEC 4136 | -9/Exiles | Learned location of Zion (-6) 4439 | -9/Exiles | Found Potential Leg 4441 | -9/Exiles | Found Potential Leg 4454 | -9/Exiles | Build established: Scavenger-Mutant 4997 | -9/Exiles | Attacked by the Exiles 5117 | -9/Exiles | Core integrity fell below 50% 5202 | -9/Exiles | Core integrity fell below 20% 5232 | -9/Exiles | Lost 9 parts (1p3n3u2w) 5265 | -9/Exiles | Destroyed by 8R-AWN with 8R-AWN's Boregun Last Messages --------------- 05195_ Wall collapses. 05197_ HV Slug penetrates Earth. 05197_ Penetrated by HV Slug. 05201_ Critical hit (Destroy). 05201_ Lgt. Treads destroyed. 05205_ Penetrated by HV Slug. 05235_ HV Slug penetrates Earth. 05235_ Penetrated by HV Slug. 05243_ HV Slug penetrates Earth. 05243_ Penetrated by HV Slug. 05250_ Extracted 100 matter. 05256_ Penetrated by HV Slug. 05256_ HV Slug penetrates Wall. 05256_ Penetrated by HV Slug. 05256_ HV Slug penetrates Wall. 05260_ Penetrated by HV Slug. 05260_ HV Slug penetrates Earth. 05260_ Penetrated by HV Slug. 05260_ HV Slug penetrates Earth. 05265_ Penetrated by HV Slug. Map ----- +----------------------------------------------------+ | ?????????????????????????????????????????????????? | | ?????????????????????????????????????????????????? | | ?????????????????????????????????????????????????? | | ?????????????????????????????????????????????????? | | ?????????????????????????????????????????????????? | | ?????????????????????????????????????????????????? | | ?????????????????????????????????????????????????? | | ?????????????????????????????????????????????????? | | ?????????????????????????????????????????????????? | | ?????????????????????????????????????????????????? | | ?????????????????????????????????????????????????? | | ?????????????????????????????????????????????????? | | ?????????????????????????????????????????????????? | | ?????????????????????????????????????????????????? | | ?????????????????????????????????????????????????? | | ?????????????????????????????????????????????????? | | ?????????????????????????????????????????????????# | | ?????????????????????????????????????????????????# | | ?????????????????????????????????????????????????# | | ?????????????????????????????????????????????????# | | ?????????????????????????????????????????????????? | | ????????????????????????###??????????????????????? | | ????????????????????????# #??????????????????????? | | ????????????????????????# #??????????????????????? | | ????????? ??????????????#;#####??????????????????? | | ???????? ######???????#@!! "#??????????????????? | | ???????? #""#??????# "#??????????????????? | | ???????? ??????# "#??????????????????? | | ????????" #????## ""#??????????????????? | | ????????" #####" ""#????????????? ????? | | ?????????# ## g ""#????????????" ""??? | | ??????????# #" ###????????????" ?? | | ?????????????# #?????????????"" ?? | | ????????????????# ##????????????"" "#? | | ????????????????### "#???????????? ""?? | | ??????????######## ####??????????" "??? | | ??????????# !!"""" "" #????????# #??? | | ??????????#! ! ###"" "#####???### ###? | | ??????????#! ! #?##" "#####X# #"## | | ??????????#! !"#??#" % """ | | ??????????# !""""" """ #?#"# % "" | | ??????????########## # #?#### % " | | ???????????????????# # #????### | | ???????????????????# ## ??????### | | ???????????????????# #? ???????## | | ???????????????????# #?# #???????## | | ???????????????????# #??#?????????##" | | ???????????????????# #?????????????#"" | | ???????????????????# ?????????????##" | | ???????????????????# ?????????????#"" | +----------------------------------------------------+ Best States ------------- Heat Dissipation 42 Energy Generation 14 Energy Capacity 280 Matter Stores 300 Matter Capacity 400 Sight Range 16 Terrain Scan Density 10 Armor Coverage 375 Core Shielding 20 Evasion (%) 61 Recoil Reduction 3 Item Schematics ----------------- None Robot Schematics ------------------ None Fabricated ------------ Nothing Alien Tech Used ----------------- None Achievements -------------- None Challenges ------------ None Game ------ Seed VortexRecoilReplicator Manual? 0 Play Time 00:22:39 Cumulative 367.0 hours Start 2022.05.30 @ 19:18:11 End 2022.05.30 @ 19:35:32 Sessions 1 Manual Loads 0 Difficulty Rogue Special Mode None Game No. 396 Rogue 396 Adventurer 0 Explorer 0 Win Type - Total 29 Types 18/3/2/1/2/0/3/0/0 Lore% 89 Gallery% 89 Achievement% 80 Wizard Run 0 Options --------- ASCII 0 Keyboard 0 Movement Arrows Keybinds 0 Fullscreen 2 Font 18/SmallcapsGlow Map View 76x50 Tactical HUD 1 Map Filters NONE Filters NONE Steam 1 RUN: a6222b0b-9b6b-4646-8318-ab648e7fe989